Cogmind - Beta 15 *** ADVENTURER MODE // 2025.06.29 @ 16:12:38 Player: Xoddiel Result: Self-destructed Performance ------------- Evolutions (4) 2000 Regions Visited (4) 800 Robots Destroyed (43) 215 Value Destroyed (1499) 1499 Prototype IDs (11) 220 Alien Tech Used (0) 0 Bonus (735) 735 TOTAL SCORE: 5469 Bonus ------- Registered with UFD 300 Met Optimus in HQ 500 Friendly Fire -65 Cogmind --------- Core Integrity 410/850 Matter 300/300 Energy 99/100 System Corruption 3% Temperature Cool (0) Movement Core (50) Location -6/Factory Parts ------- > --- POWER (2) -------- (None) > --- PROPULSION (4) --- (None) > --- UTILITY (5) ------ Triangulator > --- WEAPON (4) ------- (None) > --- INVENTORY (5) ---- Gravmag Array Advanced Weight Redist. System Power Shielding Improved Grenade Launcher Peak State ------------ > --- POWER ------------ Light Ion Engine > --- PROPULSION ------- Hover Unit Hover Unit > --- UTILITY ---------- Advanced Weight Redist. System Structural Scanner Triangulator > --- WEAPON ----------- Improved Grenade Launcher > --- INVENTORY -------- Power Shielding EM Pulse Gun [Rating: 15] Favorites ----------- Power Light Ion Engine Engine Light Ion Engine Propulsion Hover Unit Wheel Wheel Hover Unit Hover Unit Utility Improved Terrain Scanner Device Improved Terrain Scanner Protection Power Shielding Weapon Assault Rifle Energy Gun Small Laser Ballistic Gun Assault Rifle Launcher Grenade Launcher Build | -11 -10 -10 -9 -6 ------- Run | Yrd Mat Sub Scr Fac Slots Evolved 8 | . . . . 8 Power 1 | . . . . 1 Propulsion 2 | . . . . 2 Utility 3 | . . . . 3 Weapon 2 | . . . . 2 Parts Attached 16 | 6 4 . 4 2 Power 1 | 1 . . . . Engine 1 | 1 . . . . Core . | . . . . . Reactor . | . . . . . Propulsion 5 | 2 2 . 1 . Treads . | . . . . . Leg . | . . . . . Wheel 2 | 2 . . . . Hover 3 | . 2 . 1 . Flight . | . . . . . Utility 5 | 1 1 . 2 1 Device 4 | 1 . . 2 1 Storage . | . . . . . Processor . | . . . . . Hackware . | . . . . . Protection 1 | . 1 . . . Artifact . | . . . . . Weapon 5 | 2 1 . 1 1 Energy Gun 2 | 1 . . . 1 Energy Cannon . | . . . . . Ballistic Gun 1 | 1 . . . . Ballistic Cannon . | . . . . . Launcher 2 | . 1 . 1 . Special Weapon . | . . . . . Impact Weapon . | . . . . . Slashing Weapon . | . . . . . Piercing Weapon . | . . . . . Special Melee Weapon . | . . . . . Unidentified Prototypes . | . . . . . Parts Lost 5 | . 1 . . 4 Power 1 | . . . . 1 Propulsion 3 | . 1 . . 2 Utility . | . . . . . Weapon 1 | . . . . 1 Highest Loss Streak 4 | . 1 . . 4 To Critical Strikes . | . . . . . Average Backups 3 | . 2 4 4 3 Power . | . . . . . Propulsion . | . . 1 . . Utility 1 | . . 2 2 2 Weapon 1 | . . 1 1 1 Tool/Special . | . . . . . Unused Backups 3 | . . . 1 2 Power . | . . . . . Propulsion 1 | . . . . 1 Utility 2 | . . . 1 1 Weapon . | . . . . . Tool/Special . | . . . . . Average Slot Usage (%) 81 | . 92 100 73 28 Engine 13 | . 13 14 14 3 Wheel 2 | . 6 . . . Hover 22 | . 20 28 28 7 Device 15 | . 14 14 17 12 Protection 9 | . 9 14 10 . Ballistic Gun 7 | . 13 14 . . Launcher 8 | . 13 14 2 . Peak Build Rating 15 | 8 9 9 12 15 Average Rating 8 | 6 8 9 7 9 On Entrance 7 | . 8 9 9 12 Naked Turns . | . . . . . Heaviest Build 11 | 7 10 10 11 11 Greatest Support 21 | 20 20 12 12 21 Greatest Overweight (x) 1 | . 1 . . . Average Overweight (x) . | . . . . . Largest Inventory Capacity 5 | 5 5 5 5 5 Average Capacity 5 | 5 5 5 5 5 Most Carried 5 | 2 5 4 5 5 Average Carried 3 | . 2 4 4 4 Final Capacity 5 | 5 5 5 5 5 Final Carried 5 | . 4 4 5 5 Class Distribution -------------------- 100% | Mutant Dominant Class ---------------- Mutant | -10/Materials Mutant | -10/Subcaves Mutant | -9/Scraptown Mutant | -6/Factory Resources | -11 -10 -10 -9 -6 ----------- Run | Yrd Mat Sub Scr Fac Matter Collected 946 | 265 281 131 269 . Remotely . | . . . . . Salvage Created 1337 | 37 397 171 732 . Parts 86 | 1 29 13 43 . Haulers Intercepted . | . . . . . Recyclers Shooed 1 | . 1 . . . Parts Field Recycled . | . . . . . Retrieved Matter . | . . . . . Parts Self-Destructed 8 | . . 8 . . Prevented . | . . . . . Kills | -11 -10 -10 -9 -6 ------- Run | Yrd Mat Sub Scr Fac Combat Hostiles Destroyed 38 | 1 13 8 16 . Guns 2 | 1 . 1 . . AOE 36 | . 13 7 16 . Classes Destroyed 13 | 1 4 3 5 . Builder 1 | . 1 . . . Recycler 1 | . 1 . . . Mechanic 1 | . 1 . . . Turret 1 | . . 1 . . Watcher 1 | . 1 . . . Swarmer 4 | . . 4 . . Grunt 14 | 1 13 . . . Subdweller 4 | . . 4 . . Federalist 2 | . . . 2 . Explorer 2 | . . . 2 . Ranger 1 | . . . 1 . Guru 3 | . . . 3 . Scrapper 8 | . . . 8 . Best Kill Streak 10 | 1 7 7 10 . Combat Bots Only 10 | 1 4 6 10 . Max Kills in Single Turn 3 | 1 2 3 2 . Gunslinging . | . . . . . Exploded 3 | . 2 3 2 . Melee . | . . . . . Uniques/NPCs Destroyed . | . . . . . Combat | -11 -10 -10 -9 -6 -------- Run | Yrd Mat Sub Scr Fac Hostile Shots Fired 184 | 6 34 13 25 106 Missed 86 | 2 11 5 14 54 Hits 98 | 4 23 8 11 52 Projectile 98 | 4 23 8 11 52 Critical Strikes 3 | . 1 . . 2 Damage Taken 1007 | 33 225 53 134 562 Core 547 | 16 13 27 51 440 Absorbed by Shields . | . . . . . Ignored by Resistances 304 | 11 65 16 42 170 Regen/Repaired (Parts) 69 | . 69 . . . Core Remaining (%) 75 | 93 . . 57 . Volleys Fired 66 | 5 32 12 17 . Largest 2 | 2 1 1 1 . Hottest 60 | 60 30 30 36 . Shots Fired 73 | 10 34 12 17 . Gun 24 | 10 12 2 . . Cannon . | . . . . . Launcher 49 | . 22 10 17 . Special . | . . . . . Kinetic 19 | 5 12 2 . . Thermal 5 | 5 . . . . Explosive 49 | . 22 10 17 . Electromagnetic . | . . . . . Robot Hit Streak 17 | 4 7 13 17 . Robot Miss Streak 3 | 3 3 . 1 . Penetration Max . | . . . . . Secondary Targets . | . . . . . Shots Hit Robots 37 | 7 17 6 7 . Core Hits 77 | 2 36 18 21 . Critical Kills . | . . . . . Critical Parts Destroyed . | . . . . . Critical Strikes . | . . . . . Melee Attacks . | . . . . . Impact . | . . . . . Slashing . | . . . . . Piercing . | . . . . . Sneak Attacks . | . . . . . Combat Hostiles . | . . . . . Follow-up Attacks . | . . . . . Damage Inflicted 3152 | 81 1254 673 1144 . Guns 161 | 81 56 24 . . Cannons . | . . . . . Explosions 2991 | . 1198 649 1144 . Melee . | . . . . . Ramming . | . . . . . Kinetic 117 | 37 56 24 . . Thermal 44 | 44 . . . . Explosive 2991 | . 1198 649 1144 . Electromagnetic . | . . . . . Impact . | . . . . . Slashing . | . . . . . Piercing . | . . . . . Highest Corruption 3 | . 2 2 3 3 Average Corruption 1 | . 1 2 2 2 Corruption Purged . | . . . . . Corruption Blocked . | . . . . . Effects 25 | . 10 4 10 1 Message Errors 7 | . 2 1 4 . Matter Fused 4 | . 1 2 1 . Heat Flow Errors 1 | . 1 . . . Energy Discharges 5 | . 2 . 3 . Parts Rejected 1 | . . . . 1 Parts Fused 1 | . . . 1 . Data Loss (minor) 2 | . 1 . 1 . Data Loss (major) 2 | . 1 1 . . Misfires 2 | . 2 . . . Overload Shots . | . . . . . Overflow Damage 119 | . 20 55 44 . Projectiles . | . . . . . Explosions 119 | . 20 55 44 . Melee . | . . . . . Knockbacks . | . . . . . Impact . | . . . . . Kinetic . | . . . . . Secondary . | . . . . . Self-Inflicted Damage 21 | . . . 21 . Shots 1 | . . . 1 . Rammed . | . . . . . Targets Rammed . | . . . . . Kicked . | . . . . . Crushed . | . . . . . Highest Temperature 192 | 24 192 . 30 9 Average Temperature 31 | 16 50 . 10 5 Received Heat Transfer 382 | 24 183 12 36 127 Siege Activations . | . . . . . Martial Activations . | . . . . . Shielding Activations . | . . . . . Robots Disrupted . | . . . . . Combat Hostiles . | . . . . . Robots Corrupted . | . . . . . Combat Hostiles . | . . . . . Parts Fried . | . . . . . Impact Corruptions . | . . . . . Robots Melted . | . . . . . Combat Hostiles . | . . . . . Parts Melted 2 | 1 . . 1 . Heat Transferred 100 | 100 . . . . Parts Sabotaged . | . . . . . Parts Stolen . | . . . . . Parts Stripped . | . . . . . Power Chain Reactions . | . . . . . Alert | -11 -10 -10 -9 -6 ------- Run | Yrd Mat Sub Scr Fac Maximum Alert Level 1 | . 1 . . . Low Security (%) 98 | 100 98 . . 100 Level 1 1 | . 1 . . . Level 2 . | . . . . . Level 3 . | . . . . . Level 4 . | . . . . . Level 5 . | . . . . . High Security . | . . . . . Max Security . | . . . . . Peak Influence 209 | 20 209 . . 65 Initial . | . . . . . Average 45 | . 60 . . 15 Influence Increases 801 | 20 486 175 . 120 Destroy 0b10 Robot/C 380 | 20 260 100 . . Destroy 0b10 Robot/NC 20 | . 20 . . . Destroy Leader 72 | . 72 . . . Successful Hack 40 | . 40 . . . Destroy Structure 94 | . 94 . . . Lose Combat Pursuer 195 | . . 75 . 120 Influence Decreases 746 | 20 486 70 105 65 Entered New Map 105 | . . . 105 . Time Decay 456 | 20 326 70 . 40 Lost Part 35 | . 10 . . 25 Purge Threat 150 | . 150 . . . Squads Dispatched 4 | . 3 . . 1 Investigation 3 | . 3 . . . Extermination . | . . . . . Reinforcement 1 | . . . . 1 Assault . | . . . . . Garrison . | . . . . . Intercept . | . . . . . Searches Triggered . | . . . . . Construction Impeded . | . . . . . Haulers Reinforced . | . . . . . Active Scanning Responses . | . . . . . Cargo Convoy Interrupts . | . . . . . Stealth | -11 -10 -10 -9 -6 --------- Run | Yrd Mat Sub Scr Fac Distress Signals 3 | . 2 . . 1 Communications Jammed . | . . . . . Distress Signals . | . . . . . Times Spotted 70 | 1 24 13 16 16 Peak Tracking Total 9 | 1 3 6 6 9 Tactical Retreats 5 | . . 1 1 3 Traps | -11 -10 -10 -9 -6 ------- Run | Yrd Mat Sub Scr Fac Traps Triggered 6 | . 6 . . . Indirectly . | . . . . . Trap Hack Attempts . | . . . . . Triggered . | . . . . . Disarmed . | . . . . . Reprogrammed . | . . . . . Reused . | . . . . . Traps Extracted . | . . . . . Installed . | . . . . . Triggered . | . . . . . Machines | -11 -10 -10 -9 -6 ---------- Run | Yrd Mat Sub Scr Fac Machines Disabled 15 | . . 3 12 . Max in Single Turn 3 | . . 3 3 . Machines Repaired . | . . . . . Machines Dismantled . | . . . . . Machines Sabotaged . | . . . . . Overloaded Fab Kills . | . . . . . Hacking | -11 -10 -10 -9 -6 --------- Run | Yrd Mat Sub Scr Fac Machines Accessed 20 | . 10 . 9 1 Terminals 7 | . 7 . . . Fabricators 1 | . . . . 1 Repair Stations 1 | . 1 . . . Recycling Units 2 | . 2 . . . Scanalyzers . | . . . . . Garrison Access . | . . . . . Total Hacks 99 | . 42 . 55 2 Successful 82 | . 27 . 55 . Failed 17 | . 15 . . 2 Catastrophic 2 | . 2 . . . Database Lockouts . | . . . . . Manual . | . . . . . Terminals 30 | . 30 . . . Fabricators 2 | . . . . 2 Repair Stations 5 | . 5 . . . Recycling Units 7 | . 7 . . . Scanalyzers . | . . . . . Garrison Access . | . . . . . Terminal Hacks 72 | . 17 . 55 . Record 56 | . 1 . 55 . Prototype ID Bank 5 | . 5 . . . Branch Access Points 1 | . 1 . . . Emergency Access Points 2 | . 2 . . . Terminal Index 1 | . 1 . . . Alert Level 1 | . 1 . . . Unreport Threat 1 | . 1 . . . Locate Traps 1 | . 1 . . . Dispatch Records 2 | . 2 . . . Recall Investigation 1 | . 1 . . . Zone Layout 1 | . 1 . . . Fabricator Hacks . | . . . . . Repair Station Hacks 5 | . 5 . . . Scan Component 3 | . 3 . . . Repair 2 | . 2 . . . Recycling Unit Hacks 5 | . 5 . . . Process 2 | . 2 . . . Report Inventory 2 | . 2 . . . Retrieve Matter 1 | . 1 . . . Scanalyzer . | . . . . . Garrison Access Hacks . | . . . . . Unauthorized Hacks . | . . . . . Terminals . | . . . . . Fabricators . | . . . . . Repair Stations . | . . . . . Recycling Units . | . . . . . Scanalyzers . | . . . . . Garrison Access . | . . . . . Data Cores Recovered . | . . . . . Used . | . . . . . Hacking Detections 9 | . 8 . . 1 Full Trace Events 4 | . 4 . . . Feedback Events . | . . . . . Feedback Blocked . | . . . . . Robot Schematics Acquired . | . . . . . Robots Built . | . . . . . Authchips . | . . . . . Time . | . . . . . Total Robot Build Rating . | . . . . . Part Schematics Acquired . | . . . . . Parts Built . | . . . . . Authchips . | . . . . . Time . | . . . . . Total Part Build Rating . | . . . . . Parts Repaired 2 | . 2 . . . Time 52 | . 52 . . . Parts Recycled . | . . . . . Recycled Matter 268 | . 268 . . . Retrieved Matter 67 | . 67 . . . Retrieved Components . | . . . . . Parts Scanalyzed . | . . . . . Part Schematics Acquired . | . . . . . Parts Damaged . | . . . . . Bothacking | -11 -10 -10 -9 -6 ------------ Run | Yrd Mat Sub Scr Fac Used RIF Installer . | . . . . . Robots Hacked . | . . . . . Non-combat . | . . . . . Combat . | . . . . . Robot Hacks Applied . | . . . . . Relay Couplers Released . | . . . . . Fabnet Peak Effective % . | . . . . . Robots Rewired . | . . . . . Allies Hacked . | . . . . . Hacks Repelled . | . . . . . Allies | -11 -10 -10 -9 -6 -------- Run | Yrd Mat Sub Scr Fac Total Allies . | . . . . . Largest Group . | . . . . . Highest-Rated Group . | . . . . . Highest-Rated Ally . | . . . . . Total Orders . | . . . . . Ally Attacks . | . . . . . Total Damage . | . . . . . Kills . | . . . . . Allies Corrupted . | . . . . . Allies Melted 1 | . . 1 . . Intel | -11 -10 -10 -9 -6 ------- Run | Yrd Mat Sub Scr Fac Active Infowar (turns) 2590 | 162 1115 227 902 184 Terrain 2100 | 162 1115 227 596 . Structural 475 | . . . 306 169 Triangulation 408 | . . . 224 184 Robot Analysis Total . | . . . . . Derelict Logs Recovered 1 | . . 1 . . Drone Launches . | . . . . . Drone Recoveries . | . . . . . Exploration | -11 -10 -10 -9 -6 ------------- Run | Yrd Mat Sub Scr Fac Turns Passed 2682 | 253 1115 227 903 184 Spaces Moved 4201 | 292 1699 363 1513 334 Core 166 | 25 . . . 141 Treads . | . . . . . Legs . | . . . . . Wheels 587 | 267 320 . . . Hover 3448 | . 1379 363 1513 193 Flight . | . . . . . Fastest Speed 50 | 50 56 56 56 50 Average Speed 59 | 77 60 56 56 53 Slowest Speed 120 | 80 120 56 56 60 Overloaded Moves . | . . . . . Propulsion Burnouts . | . . . . . Robots Hopped . | . . . . . Potential Cave-ins . | . . . . . Cave-ins Triggered . | . . . . . Exploration Rate (%) 43 | 10 100 19 79 10 Regions Visited 4 Branch Regions 2 Pre-discovered Areas . | . . . . . Known Exits Taken 1 | . . . 1 . Unknown Exits Taken 3 | 1 1 1 . . Scrap Searched . | . . . . . Spaces Dug . | . . . . . Terrain Destroyed 275 | . 122 32 121 . Melee . | . . . . . Projectile . | . . . . . AOE 275 | . 122 32 121 . Terrain Rammed . | . . . . . Walls Destroyed . | . . . . . Machines Disabled . | . . . . . Actions | -11 -10 -10 -9 -6 --------- Run | Yrd Mat Sub Scr Fac Total 4326 | 308 1752 374 1551 341 Wait 5 | . . . 5 . Move 4197 | 291 1698 362 1512 334 Hop . | . . . . . Pick Up 24 | 6 12 . 5 1 Fast Attach . | . . . . . Attach 17 | 6 7 . 2 2 Detach 4 | . . . 2 2 Swap 4 | . 2 . 2 . Drop 7 | . 1 . 4 2 Fire 66 | 5 32 12 17 . Melee . | . . . . . Ram . | . . . . . Kick . | . . . . . Crush . | . . . . . Escape Stasis . | . . . . . Rewire 2 | . . . 2 . Trap . | . . . . . Miscellaneous . | . . . . . Route ------- -11/Scrapyard -10/Materials (discovered 5 exits: [*Mat x3] / *Min / [*Sub]) -10/Subcaves (discovered 3 exits: [*Mat] / [*Rec] / *Scr) -9/Scraptown (discovered 2 exits: *Fac x2) -6/Factory History --------- Turn | Location | Event 2 | -11/Scrapyard | Met Revision 17 58 | -11/Scrapyard | Discovered new exit (range 8) 254 | -11/Scrapyard | Entered Materials 300 | -10/Materials | Build established: Mutant 382 | -10/Materials | Discovered new exit (range 15) 445 | -10/Materials | Discovered new exit (range 13) 649 | -10/Materials | Repaired Grenade Launcher 678 | -10/Materials | Repaired Lgt. Ion Engine 717 | -10/Materials | Discovered new exit (range 6) 771 | -10/Materials | Discovered new exit (range 12) 819 | -10/Materials | Discovered new exit (range 13) 1241 | -10/Materials | Identified exit to Mines 1369 | -10/Materials | Entered Subcaves 1370 | -10/Subcaves | Approached by a straggling Scientist 1389 | -10/Subcaves | Discovered new exit (range 11) 1437 | -10/Subcaves | Learned Materials terminal intel 1453 | -10/Subcaves | Ambushed by swarm of Subdwellers 1474 | -10/Subcaves | Discovered new exit (range 9) 1552 | -10/Subcaves | Scientist uncovered a shortcut to Scraptown 1596 | -10/Subcaves | Entered Scraptown 1735 | -9/Scraptown | Discovered new exit (range 5) 1829 | -9/Scraptown | Visited Symbiants 1866 | -9/Scraptown | Visited UFD Registry 1874 | -9/Scraptown | Visited Cyclists 1970 | -9/Scraptown | Registered with UFD as "Thermohead" 1989 | -9/Scraptown | Visited Junk Repository 2055 | -9/Scraptown | Entered Cyclist Reading Room 2114 | -9/Scraptown | Visited Curators Association 2144 | -9/Scraptown | Visited Scrapoid Research Area 2170 | -9/Scraptown | Visited Junk Repository 2228 | -9/Scraptown | Visited Abandonware Association 2237 | -9/Scraptown | Learned abandonware demo "SHUTEYE.EXE" 2267 | -9/Scraptown | Visited Infowarlord's Domain 2294 | -9/Scraptown | Met Optimus 2294 | -9/Scraptown | Accepted into 0bPrime 2330 | -9/Scraptown | Visited Derelict Rescue Squad 2346 | -9/Scraptown | Civil war broke out across Scraptown 2434 | -9/Scraptown | Identified exit to Factory 2495 | -9/Scraptown | Lost 3 allies 2499 | -9/Scraptown | Entered Factory 2499 | -6/Factory | Evolved 8 slots: Power x1, Propulsion x2, Utility x3, Weapon x2 2508 | -6/Factory | Destroyed 10 combat bots 2643 | -6/Factory | Lost 4 parts (1p2n1w) 2682 | -6/Factory | Core integrity fell below 50% 2683 | -6/Factory | Self-destructed Last Messages --------------- Acquired Gravmag Array. C-30 ARC bursts open, deploying its payload. P-60 Hacker unfolds itself. S-27 Virus destroyed. Lgt. Ion Engine destroyed. EM Pulse Gun destroyed. Hover Unit destroyed. R-10 Processor collects VTOL Module. Hover Unit destroyed. R-10 Processor collects VTOL Module. U-05 Engineer destroyed. R-10 Processor collects Lgt. Ion Engine. Critical hit (Burn: +50). K-01 Serf collects debris. System corrupted: Structural Scanner rejected. Fusion Modulator explodes. Scanalyzer disabled. S-27 Virus destroyed. K-01 Serf collects debris. [Achievement: 5k Club] Map ----- +----------------------------------------------------+ | ?????????????????????????????????????????????????? | | ?????????????????????????????????????????????????? | | ?????????????????????????????????????????????????? | | ?????????????????????????????????????????????????? | | ?????????????????????????????????????????????????? | | ?????????????????????????????????????????????????? | | ?????????????????????????????????????????????????? | | ##################???????????????????????????????? | | ##################???????###?????????????????????? | | ??????? ?????????????????????? | | ##???????????# #?????????????????????? | | ##???????????# #?????????????????????? | | ##?????????### ###???##??????????????? | | ## ######## ########???# ###T ##### ????????? | | ## ########+############ " ????????? | | ## ### ] * + "T ????????? | | ## ### ###### ! ?????????? | | ##+### ! ### # k ######??????????????? | | # """"""""" #;;;;;;;;;####?????????????????? | | """" # """"""""" #;!!! =p* #?????????????????? | | """" # """"""""" ;;!! ! " #?????????????????? | | """" # """"""""" ;; ! "" #?????????????????? | | """" # """"""""" ;; " #?????????????????? | | """" #] """"""""" ; Y "p#?????????????????? | | """" # ;; " #?????????????????? | | """" # ! * #; @ #?????????????????? | | # #;k;;;;;;;####?????????????????? | | ##+######+########## ! ####????????????????????? | | ????????????????????????? | | " ????????????????????????? | | ????????????????????????? | | #########+########## ?????????????????????????? | | ### #########?????????????????????????? | | ?????????????????????????????????????????????????? | | ?????????????????????????????????????????????????? | | ?????????????????????????????????????????????????? | | ?????????????????????????????????????????????????? | | ?????????????????????????????????????????????????? | | ?????????????????????????????????????????????????? | | ?????????????????????????????????????????????????? | | ?????????????????????????????????????????????????? | | ?????????????????????????????????????????????????? | | ?????????????????????????????????????????????????? | | ?????????????????????????????????????????????????? | | ?????????????????????????????????????????????????? | | ?????????????????????????????????????????????????? | | ?????????????????????????????????????????????????? | | ?????????????????????????????????????????????????? | | ?????????????????????????????????????????????????? | | ?????????????????????????????????????????????????? | +----------------------------------------------------+ Best States ------------- Heat Dissipation 37 Energy Generation 10 Energy Capacity 125 Matter Stores 300 Matter Capacity 300 Sight Range 16 Terrain Scan Range 16 Terrain Scan Density 10 Resistance: KI 20 Resistance: TH 20 Resistance: EX 20 Resistance: EM 20 Resistance: I 20 Resistance: S 20 Resistance: P 20 Power Shielding 33 Evasion (%) 53 Offensive Hacking 10 Item Schematics ----------------- None Robot Schematics ------------------ None Fabricated ------------ Nothing Repaired ---------- Grenade Launcher | 18% | -10/Materials Lgt. Ion Engine | 50% | -10/Materials Alien Tech Used ----------------- None Achievements -------------- 5k Club Librarian Made in Tau Ceti IV Remodeling Uninvited Guest Challenges ------------ None Game ------ Seed SwordScanMace Manual? 0 Play Time 01:27:03 Cumulative 2.8 hours Start 2025.06.28 @ 15:19:43 End 2025.06.29 @ 16:12:38 Sessions 3 Manual Loads 0 Difficulty Adventurer Special Mode None Game No. 2 Rogue 0 Adventurer 2 Explorer 0 Win Type - Total 0 Types 0/0/0/0/0/0/0/0/0/0 Lore% 7 Gallery% 1 Achievement% 4 Wizard Run 0 Options --------- Layout 1 ASCII 0 Keyboard 0 Movement Arrows Keybinds 0 Fullscreen 1 Font 24/Terminus Map View 50x35 Zoom Use 0% Tactical HUD 0 Map Filters NONE Filters NONE Steam SD RUN: de87fe4b-0da5-4d66-a4e6-ffb4fcd4bcca